Cogmind - Beta 13 X2 @@@ ROGUE MODE // 2024.01.23 @ 00:16:33 // Winter2022/Polymind Player: Minty Result: Destroyed by S-10 Pest with Light Assault Rifle Performance ------------- Evolutions (0) 0 Regions Visited (2) 400 Robots Destroyed (3) 15 Value Destroyed (88) 88 Prototype IDs (0) 0 Alien Tech Used (0) 0 Bonus (1030) 1030 TOTAL SCORE: 1213 Bonus ------- Polymind Skill 1030 Cogmind --------- Core Integrity 0/250 Matter 0/0 Energy 50/50 System Corruption 0% Temperature Cool (0) Movement Rolling (80) Location -10/Subcaves Parts ------- > --- POWER (1) -------- Light Ion Engine > --- PROPULSION (2) --- Wheel Wheel > --- UTILITY (0) ------ (None) > --- WEAPON (1) ------- Multitool > --- INVENTORY (1) ---- (None) Peak State ------------ > --- POWER ------------ Subdweller Power Source > --- PROPULSION ------- Subdweller Monowheel > --- UTILITY ---------- Disposable Heat Sink Subdweller Optics Scrap Shield > --- WEAPON ----------- Subdweller Laser > --- INVENTORY -------- (None) [Rating: 14] Favorites ----------- Power Light Ion Engine Engine Light Ion Engine Propulsion Wheel Wheel Wheel Flight Unit Flight Unit Utility Disposable Heat Sink Device Disposable Heat Sink Protection Scrap Shield Weapon Subdweller Laser Energy Gun Subdweller Laser Ballistic Gun Light Assault Rifle Special Weapon Mining Laser Build | -11 -10 -10 ------- Run | Yrd Mat Sub Slots Evolved . | . . . Power . | . . . Propulsion . | . . . Utility . | . . . Weapon . | . . . Parts Attached . | . . . Power . | . . . Engine . | . . . Core . | . . . Reactor . | . . . Propulsion . | . . . Treads . | . . . Leg . | . . . Wheel . | . . . Hover . | . . . Flight . | . . . Utility . | . . . Device . | . . . Storage . | . . . Processor . | . . . Hackware . | . . . Protection . | . . . Artifact . | . . . Weapon . | . . . Energy Gun . | . . . Energy Cannon . | . . . Ballistic Gun . | . . . Ballistic Cannon . | . . . Launcher . | . . . Special Weapon . | . . . Impact Weapon . | . . . Slashing Weapon . | . . . Piercing Weapon . | . . . Special Melee Weapon . | . . . Unidentified Prototypes . | . . . Parts Lost 1 | . . 1 Power . | . . . Propulsion . | . . . Utility 1 | . . 1 Weapon . | . . . Highest Loss Streak 1 | . . 1 To Critical Strikes . | . . . Average Slot Usage (%) 81 | . 87 77 Engine 14 | . 14 14 Wheel 20 | . 28 16 Flight 3 | . . 4 Device 22 | . 28 19 Protection 5 | . . 7 Energy Gun 5 | . . 8 Ballistic Gun 1 | . . 2 Special Weapon 7 | . 14 3 Naked Turns 73 | . 27 46 Heaviest Build 30 | . 6 30 Greatest Support 20 | 3 20 20 Greatest Overweight (x) 1 | . . 1 Average Overweight (x) . | . . . Largest Inventory Capacity 2 | . . 2 Average Capacity . | . . 1 Most Carried . | . . . Average Carried . | . . . Final Capacity 1 | . . 1 Final Carried . | . . . Class Distribution -------------------- 38% | Subdweller 33% | Tunneler 15% | Cogmind 6% | Artisan 6% | Swarmer Dominant Class ---------------- Tunneler | -10/Materials Subdweller | -10/Subcaves Resources | -11 -10 -10 ----------- Run | Yrd Mat Sub Matter Collected 2 | . . 2 Remotely . | . . . Salvage Created 18 | . . 18 Parts 7 | . . 7 Haulers Intercepted . | . . . Recyclers Shooed . | . . . Parts Field Recycled . | . . . Retrieved Matter . | . . . Parts Self-Destructed 7 | . . 7 Prevented . | . . . Kills | -11 -10 -10 ------- Run | Yrd Mat Sub Combat Hostiles Destroyed 2 | . . 2 Guns 2 | . . 2 Classes Destroyed 2 | . . 2 Tunneler 1 | . . 1 Grunt 2 | . . 2 Best Kill Streak 2 | . . 2 Combat Bots Only 2 | . . 2 Max Kills in Single Turn 1 | . . 1 Gunslinging . | . . . Exploded . | . . . Melee . | . . . Uniques/NPCs Destroyed . | . . . Combat | -11 -10 -10 -------- Run | Yrd Mat Sub Hostile Shots Fired 44 | . . 44 Missed 12 | . . 12 Damage Taken 566 | . . 566 Core 253 | . . 253 Absorbed by Shields . | . . . Core Remaining (%) 100 | 100 . . Volleys Fired 13 | . . 13 Largest 1 | . . 1 Hottest 100 | . . 100 Shots Fired 13 | . . 13 Gun 12 | . . 12 Cannon . | . . . Launcher . | . . . Special 1 | . . 1 Kinetic . | . . . Thermal 13 | . . 13 Explosive . | . . . Electromagnetic . | . . . Robot Hit Streak 5 | . . 5 Robot Miss Streak 1 | . . 1 Penetration Max . | . . . Secondary Targets . | . . . Shots Hit Robots 9 | . . 9 Core Hits 4 | . . 4 Critical Kills . | . . . Critical Parts Destroyed . | . . . Critical Strikes . | . . . Melee Attacks . | . . . Impact . | . . . Slashing . | . . . Piercing . | . . . Sneak Attacks . | . . . Combat Hostiles . | . . . Follow-up Attacks . | . . . Damage Inflicted 222 | . . 222 Guns 207 | . . 207 Cannons . | . . . Explosions . | . . . Melee . | . . . Ramming 15 | . . 15 Kinetic . | . . . Thermal 207 | . . 207 Explosive . | . . . Electromagnetic . | . . . Impact . | . . . Slashing . | . . . Piercing . | . . . Highest Corruption . | . . . Average Corruption . | . . . Corruption Purged . | . . . Corruption Blocked . | . . . Overload Shots . | . . . Overflow Damage . | . . . Projectiles . | . . . Explosions . | . . . Melee . | . . . Knockbacks . | . . . Impact . | . . . Kinetic . | . . . Secondary . | . . . Self-Inflicted Damage 7 | . . 7 Shots . | . . . Rammed 1 | . . 1 Targets Rammed 1 | . . 1 Kicked . | . . . Crushed . | . . . Highest Temperature 133 | . . 133 Average Temperature 51 | . . 51 Received Heat Transfer 198 | . . 198 Siege Activations . | . . . Robots Corrupted . | . . . Combat Hostiles . | . . . Parts Fried . | . . . Impact Corruptions . | . . . Robots Melted . | . . . Combat Hostiles . | . . . Parts Melted . | . . . Heat Transferred 250 | . . 250 Parts Sabotaged . | . . . Parts Stolen . | . . . Parts Stripped . | . . . Power Chain Reactions . | . . . Missiles Intercepted . | . . . Alert | -11 -10 -10 ------- Run | Yrd Mat Sub Peak Influence 15 | . 15 . Initial . | . . . Average 12 | . 12 . Maximum Alert Level . | . . . Low Security (%) 100 | . 100 . Level 1 . | . . . Level 2 . | . . . Level 3 . | . . . Level 4 . | . . . Level 5 . | . . . High Security . | . . . Max Security . | . . . Squads Dispatched . | . . . Investigation . | . . . Extermination . | . . . Reinforcement . | . . . Assault . | . . . Garrison . | . . . Intercept . | . . . Searches Triggered . | . . . Construction Impeded . | . . . Haulers Reinforced . | . . . Active Scanning Responses . | . . . Cargo Convoy Interrupts . | . . . Stealth | -11 -10 -10 --------- Run | Yrd Mat Sub Distress Signals . | . . . Communications Jammed . | . . . Distress Signals . | . . . Times Spotted 11 | . 1 10 Peak Tracking Total 6 | . 1 6 Tactical Retreats . | . . . Traps | -11 -10 -10 ------- Run | Yrd Mat Sub Traps Triggered 1 | . . 1 Indirectly . | . . . Trap Hack Attempts . | . . . Triggered . | . . . Disarmed . | . . . Reprogrammed . | . . . Reused . | . . . Traps Extracted . | . . . Installed . | . . . Triggered . | . . . Machines | -11 -10 -10 ---------- Run | Yrd Mat Sub Machines Disabled . | . . . Max in Single Turn . | . . . Machines Repaired . | . . . Machines Dismantled . | . . . Machines Sabotaged . | . . . Overloaded Fab Kills . | . . . Hacking | -11 -10 -10 --------- Run | Yrd Mat Sub Machines Accessed . | . . . Terminals . | . . . Fabricators . | . . . Repair Stations . | . . . Recycling Units . | . . . Scanalyzers . | . . . Garrison Access . | . . . Total Hacks . | . . . Successful . | . . . Failed . | . . . Catastrophic . | . . . Database Lockouts . | . . . Manual . | . . . Terminals . | . . . Fabricators . | . . . Repair Stations . | . . . Recycling Units . | . . . Scanalyzers . | . . . Garrison Access . | . . . Terminal Hacks . | . . . Fabricator Hacks . | . . . Repair Station Hacks . | . . . Recycling Unit Hacks . | . . . Scanalyzer . | . . . Garrison Access Hacks . | . . . Unauthorized Hacks . | . . . Terminals . | . . . Fabricators . | . . . Repair Stations . | . . . Recycling Units . | . . . Scanalyzers . | . . . Garrison Access . | . . . Data Cores Recovered . | . . . Used . | . . . Hacking Detections . | . . . Full Trace Events . | . . . Feedback Events . | . . . Feedback Blocked . | . . . Robot Schematics Acquired . | . . . Robots Built . | . . . Authchips . | . . . Time . | . . . Total Robot Build Rating . | . . . Part Schematics Acquired . | . . . Parts Built . | . . . Authchips . | . . . Time . | . . . Total Part Build Rating . | . . . Parts Repaired . | . . . Time . | . . . Parts Recycled . | . . . Recycled Matter . | . . . Retrieved Matter . | . . . Retrieved Components . | . . . Parts Scanalyzed . | . . . Part Schematics Acquired . | . . . Parts Damaged . | . . . Bothacking | -11 -10 -10 ------------ Run | Yrd Mat Sub Used RIF Installer . | . . . Robots Hacked 1 | . . 1 Non-combat . | . . . Combat 1 | . . 1 Robot Hacks Applied 1 | . . 1 find_shortcuts 1 | . . 1 Relay Couplers Released . | . . . Fabnet Peak Effective % . | . . . Robots Rewired . | . . . Allies Hacked . | . . . Hacks Repelled . | . . . Allies | -11 -10 -10 -------- Run | Yrd Mat Sub Total Allies . | . . . Largest Group . | . . . Highest-Rated Group . | . . . Highest-Rated Ally . | . . . Total Orders . | . . . Ally Attacks . | . . . Total Damage . | . . . Kills . | . . . Allies Corrupted . | . . . Allies Melted . | . . . Intel | -11 -10 -10 ------- Run | Yrd Mat Sub Robot Analysis Total 4 | . 1 3 Derelict Logs Recovered . | . . . Drone Launches . | . . . Drone Recoveries . | . . . Exploration | -11 -10 -10 ------------- Run | Yrd Mat Sub Turns Passed 478 | . 164 314 Spaces Moved 533 | 1 171 361 Core 146 | 1 53 92 Treads . | . . . Legs . | . . . Wheels 309 | . 118 191 Hover . | . . . Flight 78 | . . 78 Fastest Speed 37 | 50 50 37 Average Speed 75 | 50 70 77 Slowest Speed 120 | 50 80 120 Overloaded Moves . | . . . Propulsion Burnouts . | . . . Robots Hopped . | . . . Cave-ins Triggered . | . . . Exploration Rate (%) 21 | 2 30 32 Regions Visited 2 Branch Regions 1 Pre-discovered Areas 1 | . . 1 Known Exits Taken . | . . . Unknown Exits Taken 2 | 1 1 . Scrap Searched 1 | . . 1 Spaces Dug . | . . . Terrain Destroyed . | . . . Melee . | . . . Projectile . | . . . AOE . | . . . Terrain Rammed . | . . . Walls Destroyed . | . . . Machines Disabled . | . . . Actions | -11 -10 -10 --------- Run | Yrd Mat Sub Total 592 | . 213 379 Wait 4 | . . 4 Move 531 | . 170 361 Hop . | . . . Pick Up . | . . . Fast Attach . | . . . Attach . | . . . Detach . | . . . Swap . | . . . Drop . | . . . Fire 13 | . . 13 Melee . | . . . Ram 1 | . . 1 Kick . | . . . Crush . | . . . Escape Stasis . | . . . Rewire . | . . . Trap . | . . . Miscellaneous 43 | . 43 . Route ------- -11/Scrapyard -10/Materials (discovered 2 exits: [*Mat] / [*Sub]) -10/Subcaves History --------- Turn | Location | Event 1 | -11/Scrapyard | Discovered new exit (range 0) 1 | -11/Scrapyard | Entered Materials 136 | -10/Materials | Discovered new exit (range 3) 160 | -10/Materials | Discovered new exit (range 3) 165 | -10/Materials | Entered Subcaves 187 | -10/Subcaves | Disturbed a concealed Subdweller 370 | -10/Subcaves | Core integrity fell below 50% 374 | -10/Subcaves | Core integrity fell below 20% 433 | -10/Subcaves | Learned location of Zion (-7) 433 | -10/Subcaves | Met a Zionite searching for "candidates" 479 | -10/Subcaves | Destroyed by S-10 Pest with Light Assault Rifle Last Messages --------------- 00345_ Triggered Piercing Trap. 00345_ Spikes shoot up from the floor. 00345_ Critical hit (Impale). 00365_ Scrap Shield destroyed. 00373_ Released control of DM-WTH(R). 00374_ DM-WTH(R) reactivates. 00418_ Took control of S-10 Pest. 00418_ Extracted analysis data for S-10 Pest. 00424_ Acquired 2 matter. 00429_ 7C-I2V(z): "She is not going to be happy we haven't found any suitable candidates yet." 00433_ 7C-I2V(z): "Hey you! It's really dangerous down here, I feel that you could die at any moment. For your health and safety might I suggest a trip to Zion?" World map updated: -7/Zion. 00447_ Released control of S-10 Pest. 00447_ Took control of LS-2JH(u). 00447_ Extracted analysis data for Artisan. 00449_ S-10 Pest reactivates. 00460_ E0-KGB(u) tweaks Twisted Machinery. Map ----- +----------------------------------------------------+ | ???????????????????????????????????????????? | | ??????????????????????????????????????????#? | | ??????????????????????????????????????????# | | ??????????????????????????????????????????# | | ???????????????????????????????????????????" | | ???????????????????????????????????????????# | | ???????????????????????????????############# | | ?????????????????????########### # ## # # | | ????????????????????## | | ????????????????????# | | ????????????????????# # ### ## | | ????????????????????# ######?########## | | ????????????????????# ######???????????? | | ????????????????????## ##### #######?????? | | ????????????????????# ### ###???? | | ????????????????????## # #???? | | ????????????????????# ## #???? | | ????????????????????## # ##?????????? | | ?????????????????????# ##### #?????????? | | ?????????????????????# ##### ##????????? | | ????????????????????## ###??????# | | ???????????????????## #?????? | | ??????????????????## ### ##?????? | | ???????????????#### s #??##?????? | | ???????????????# ##" ## #???????????? | | ???????????????# u######## ##???????????? | | ???????????????######??????# ###?????????? | | ??????????????????????????## ##????????? | | ??????????????????????????# "#????????? | | ?????????????????????????#" ""#????????? | | ????????????????????????#"" """ #????????? | | ???????????????????????" ##"""" #???????? | | ?????????????????????? " ??## " #??????? | | ?????????????????????? " "???? " ??????? | | ???????????????????????# ""?????" ? ??????? | | ???????????????????????##""?????? ?????????? | | ???????????????????????????????????????????? | | ???????????????????????????????????????????? | | ???????????????????????????????????????????? | | ???????????????????????????????????????????? | | ???????????????????????????????????????????? | | ???????????????????????????????????????????? | | ???????????????????????????????????????????? | | ???????????????????????????????????????????? | | ???????????????????????????????????????????? | | ???????????????????????????????????????????? | | ???????????????????????????????????????????? | | ???????????????????????????????????????????? | | ???????????????????????????????????????????? | | ???????????????????????????????????????????? | +----------------------------------------------------+ Best States ------------- Heat Dissipation 25 Coolant Potential 50 Energy Generation 20 Energy Capacity 150 Matter Stores 100 Matter Capacity 100 Sight Range 19 Terrain Scan Range 16 Terrain Scan Density 10 Armor Coverage 800 Evasion (%) 62 Item Schematics ----------------- None Robot Schematics ------------------ None Fabricated ------------ Nothing Alien Tech Used ----------------- None Achievements -------------- None Challenges ------------ None Polymind | -11 -10 -10 ---------- Run | Yrd Mat Sub Hosts 4 | . 1 3 Combat Hostiles 2 | . . 2 Allies . | . . . Unique Host Classes 4 | . 1 3 Average Host Suspicion 51 | . 3 76 Unsuspicious Activity 281 | . 217 64 Returns to Shadow 1 | . . 1 Fuzzy Dispatches . | . . . Protomatter Created 51 | . . 51 Used 54 | . 5 49 Decayed 23 | . . 23 Highest Spend 33 | . 5 33 Top 5 Hosts by Kills: DM-WTH(R) (-10/Subcaves: 2) Game ------ Seed SegregatorScanCorpse Manual? 0 Play Time 00:04:15 Cumulative 614.4 hours Start 2024.01.23 @ 00:14:09 End 2024.01.23 @ 00:16:33 Sessions 1 Manual Loads 0 Difficulty Rogue Special Mode Winter2022/Polymind Game No. 562 Rogue 289 Adventurer 123 Explorer 150 Win Type - Total 25 Types 19/0/4/1/0/0/0/1/0 Lore% 79 Gallery% 90 Achievement% 75 Wizard Run 0 Options --------- ASCII 0 Keyboard 1 Movement Numpad Keybinds 0 Fullscreen 2 Font 18/X11Bold Map View 76x50 Zoom Use 0% Tactical HUD 1 Map Filters NONE Filters NONE Steam 1 RUN: 596f689a-d12f-44cb-bf0a-24f8300ed028